fUSD/lending_fUSD_20260516
["ID","MTS","AMOUNT","RATE_DAILY","PERIOD"]
[422369826,1778886640000,-684.53,0.00014999,2]
[422369823,1778886640000,-684.53,0.00014999,2]
[422369834,1778886640000,-500.0,0.00014999,2]
[422369825,1778886640000,-684.53,0.00014999,2]
[422369829,1778886640000,-684.53,0.00014999,2]
[422369836,1778886640000,-500.0,0.00014999,2]
[422369835,1778886640000,-500.0,0.00014999,2]
[422369817,1778886640000,-684.53,0.00014999,2]
[422369831,1778886640000,-684.53,0.00014999,2]
[422369830,1778886640000,-684.53,0.00014999,2]
[422369832,1778886640000,-684.53,0.00014999,2]
[422369865,1778886642000,-1067.42808208,0.00014793,2]
[422369866,1778886642000,-2839.41995751,0.00015,2]
[422369870,1778886643000,-5205.68726904,0.00015,2]
[422369869,1778886643000,-85779.33505852,0.00015,2]
[422369868,1778886643000,-123.96899683,0.00015,2]
[422369867,1778886643000,-3952.2,0.00015,2]
[422369878,1778886646000,-680.875,0.00015,2]
[422369879,1778886646000,-1067.42808208,0.000149,2]
[422369880,1778886646000,-13528.09841613,0.00015,2]
[422369877,1778886646000,-417.0,0.00015,2]
[422369930,1778886876000,190.46,7.05e-05,2]
[422369931,1778887458000,518.50989571,0.0003,120]
[422369932,1778887513000,1000.0,0.000301,120]
[422369934,1778887590000,-17.60884017,0.00013356,2]
[422369933,1778887590000,-190.46,0.00010437,2]
[422369935,1778887753000,174.4,6.795e-05,2]
[422369936,1778887770000,325.35,0.000301,120]
[422369937,1778887793000,325.35,0.000301,120]
[422369961,1778887832000,-150.0,0.00013488,2]
[422369963,1778887832000,-150.0,0.00013506,2]
[422369964,1778887832000,-210.68238258,0.0001353,2]
[422369965,1778887832000,-150.0,0.00013543,2]
[422369967,1778887832000,-150.0,0.00013597,2]
[422369968,1778887832000,-8475.07525601,0.00013598,2]
[422369979,1778887832000,-1718.12,0.00013699,2]
[422369972,1778887832000,-500.0,0.00013641,2]
[422369971,1778887832000,-150.0,0.00013599,2]
[422369959,1778887832000,-150.0,0.00013488,2]
[422369974,1778887832000,-150.0,0.00013654,2]
[422369969,1778887832000,-34636.00308927,0.00013598,2]
[422369976,1778887832000,-796.45,0.00013699,2]
[422369975,1778887832000,-2000.0,0.00013673,2]
[422369977,1778887832000,-200.0,0.00013699,2]
[422369978,1778887832000,-166.66,0.00013699,2]
[422369970,1778887832000,-34331.83625472,0.00013598,2]
[422369966,1778887832000,-391.85,0.00013568,2]
[422369958,1778887832000,-150.0,0.00013488,2]
[422369960,1778887832000,-150.0,0.00013488,2]
[422369942,1778887832000,-4134.39,0.00013336,2]
[422369941,1778887832000,-174.4,0.00013323,2]
[422369944,1778887832000,-500.0,0.00013356,2]
[422369943,1778887832000,-482.39115983,0.00013356,2]
[422369946,1778887832000,-175.69,0.00013373,2]
[422369945,1778887832000,-886.8,0.00013356,2]
[422369947,1778887832000,-929.1,0.00013382,2]
[422369948,1778887832000,-214.997284,0.00013444,2]
[422369949,1778887832000,-1200.0,0.00013465,2]
[422369950,1778887832000,-4081.24407412,0.00013466,2]
[422369954,1778887832000,-150.0,0.00013488,2]
[422369951,1778887832000,-1698.08592588,0.00013466,2]
[422369953,1778887832000,-150.0,0.00013488,2]
[422369952,1778887832000,-171.05,0.00013487,2]
[422369956,1778887832000,-150.0,0.00013488,2]
[422369955,1778887832000,-150.0,0.00013488,2]
[422369957,1778887832000,-150.0,0.00013488,2]
[422369962,1778887832000,-150.0,0.00013488,2]
[422369980,1778887832000,-162.45,0.00013699,2]
[422369995,1778887832000,-150.0,0.00013932,2]
[422369984,1778887832000,-150.0,0.0001371,2]
[422370002,1778887832000,-150.0,0.00014087,2]
[422370005,1778887832000,-150.0,0.0001413,2]
[422370008,1778887832000,-154.12,0.00014182,2]
[422370010,1778887832000,-150.0,0.00014237,2]
[422370020,1778887832000,-150.0,0.00014487,2]
[422370009,1778887832000,-150.0,0.00014209,2]
[422370011,1778887832000,-150.0,0.00014237,2]
[422370014,1778887832000,-150.0,0.0001432,2]
[422370013,1778887832000,-150.0,0.00014265,2]
[422370019,1778887832000,-150.0,0.00014431,2]
[422370017,1778887832000,-166.66,0.00014384,2]
[422370012,1778887832000,-166.66,0.00014247,2]
[422369982,1778887832000,-9022.08,0.00013699,2]
[422370016,1778887832000,-150.0,0.00014376,2]
[422370018,1778887832000,-150.0,0.00014387,2]
[422370021,1778887832000,-150.0,0.00014487,2]
[422370022,1778887832000,-20596.64161141,0.000145,3]
[422369996,1778887832000,-166.66,0.00013973,2]
[422370001,1778887832000,-150.0,0.00014043,2]
[422370015,1778887832000,-150.0,0.00014344,2]
[422370006,1778887832000,-2000.0,0.0001415,2]
[422369999,1778887832000,-250.0,0.00014,2]
[422369985,1778887832000,-154.12,0.00013724,2]
[422369990,1778887832000,-150.99,0.00013824,2]
[422369986,1778887832000,-150.0,0.00013737,2]
[422369991,1778887832000,-166.66,0.00013836,2]
[422369989,1778887832000,-150.0,0.00013821,2]
[422369987,1778887832000,-150.0,0.00013765,2]
[422369988,1778887832000,-150.0,0.00013787,2]
[422369993,1778887832000,-150.0,0.00013876,2]
[422369992,1778887832000,-150.0,0.00013862,2]
[422369994,1778887832000,-150.0,0.00013916,2]
[422369998,1778887832000,-150.0,0.00013987,2]
[422370004,1778887832000,-166.66,0.0001411,2]
[422369997,1778887832000,-150.0,0.00013987,2]
[422370007,1778887832000,-150.0,0.00014154,2]
[422370000,1778887832000,-183.66,0.00014009,2]
[422369983,1778887832000,-150.0,0.00013702,2]
[422370003,1778887832000,-150.0,0.00014098,2]
[422370041,1778887838000,-195.0,0.00014712,2]
[422370039,1778887838000,-150.0,0.00014709,2]
[422370043,1778887838000,-150.0,0.00014737,2]
[422370042,1778887838000,-500.0,0.00014726,2]
[422370044,1778887838000,-167.0,0.00014755,2]
[422370046,1778887838000,-350.0,0.00014771,2]
[422370049,1778887838000,-1010.0,0.000148,2]
[422370045,1778887838000,-150.0,0.00014764,2]
[422370048,1778887838000,-158.28060346,0.00014798,2]
[422370052,1778887838000,-158.2806034,0.00014813,2]
[422370051,1778887838000,-1200.0,0.00014812,2]
[422370050,1778887838000,-477.269,0.00014801,2]
[422370047,1778887838000,-150.0,0.00014772,2]
[422370038,1778887838000,-209.394131,0.00014697,2]
[422370025,1778887838000,-150.0,0.00014542,2]
[422370036,1778887838000,-300.0,0.00014692,2]
[422370035,1778887838000,-300.0,0.00014692,2]
[422370033,1778887838000,-300.0,0.00014692,2]
[422370037,1778887838000,-300.0,0.00014692,2]
[422370032,1778887838000,-2500.0,0.00014692,2]
[422370031,1778887838000,-150.0,0.00014687,2]
[422370026,1778887838000,-150.0,0.00014558,2]
[422370030,1778887838000,-150.0,0.00014653,2]
[422370028,1778887838000,-150.0,0.00014612,2]
[422370029,1778887838000,-154.12,0.00014639,2]
[422370024,1778887838000,-351.94368517,0.000145,2]
[422370027,1778887838000,-150.0,0.00014598,2]
[422370023,1778887838000,-4403.35838859,0.000145,3]
[422370034,1778887838000,-300.0,0.00014692,2]
[422370053,1778887838000,-150.0,0.0001482,2]
[422370040,1778887838000,-350.0,0.0001471,2]
[422370055,1778887838000,-158.2806034,0.00014842,2]
[422370054,1778887838000,-158.2806034,0.00014827,2]
[422370091,1778887838000,-500.0,0.0001497,2]
[422370084,1778887838000,-158.2806034,0.000149,2]
[422370087,1778887838000,-4119.91340144,0.000149,2]
[422370085,1778887838000,-1347.81791516,0.000149,2]
[422370083,1778887838000,-5000.0,0.000149,2]
[422370082,1778887838000,-2208.0199163,0.000149,2]
[422370081,1778887838000,-2499.991,0.000149,2]
[422370079,1778887838000,-4119.91340144,0.00014899,2]
[422370077,1778887838000,-4119.91340144,0.00014899,2]
[422370078,1778887838000,-168.21611985,0.00014899,2]
[422370074,1778887838000,-168.21611985,0.00014898,2]
[422370073,1778887838000,-4119.91340144,0.00014898,2]
[422370075,1778887838000,-4119.91340144,0.00014898,2]
[422370089,1778887838000,-150.0,0.00014931,2]
[422370076,1778887838000,-4119.91340144,0.00014899,2]
[422370070,1778887838000,-4119.91340144,0.00014897,2]
[422370058,1778887838000,-158.2806034,0.00014856,2]
[422370062,1778887838000,-150.0,0.00014875,2]
[422370066,1778887838000,-2500.0,0.00014896,2]
[422370056,1778887838000,-620.30625,0.0001485,2]
[422370059,1778887838000,-620.30626,0.0001486,2]
[422370057,1778887838000,-620.30626,0.0001485,2]
[422370064,1778887838000,-200.0,0.0001488,2]
[422370065,1778887838000,-158.2806034,0.00014885,2]
[422370067,1778887838000,-4119.91340145,0.00014897,2]
[422370069,1778887838000,-168.21611987,0.00014897,2]
[422370080,1778887838000,-4119.91340144,0.000149,2]
[422370060,1778887838000,-158.2806034,0.00014871,2]
[422370072,1778887838000,-4119.91340144,0.00014898,2]
[422370172,1778887839000,-500.0,0.00014996,2]
[422370170,1778887839000,-500.0,0.00014996,2]
[422370156,1778887839000,-1094.0,0.00014996,5]
[422370159,1778887839000,-500.0,0.00014996,2]
[422370163,1778887839000,-500.0,0.00014996,2]
[422370152,1778887839000,-275.90606938,0.00014986,2]
[422370168,1778887839000,-500.0,0.00014996,2]
[422370174,1778887839000,-640.39212556,0.00014996,2]
[422370161,1778887839000,-500.0,0.00014996,2]
[422370154,1778887839000,-152.40246816,0.00014986,2]
[422370178,1778887839000,-500.0,0.00014996,2]
[422370193,1778887839000,-500.0,0.00014996,2]
[422370180,1778887839000,-500.0,0.00014996,2]
[422370188,1778887839000,-500.0,0.00014996,2]
[422370184,1778887839000,-537.71298597,0.00014996,2]
[422370186,1778887839000,-500.0,0.00014996,2]
[422370190,1778887839000,-727.88,0.00014996,2]
[422370195,1778887839000,-500.0,0.00014996,2]
[422370213,1778887839000,-151.0,0.00014997,2]
[422370199,1778887839000,-500.0,0.00014996,2]
[422370197,1778887839000,-500.0,0.00014996,2]
[422370211,1778887839000,-500.0,0.00014996,2]
[422370165,1778887839000,-500.0,0.00014996,2]
[422370176,1778887839000,-500.0,0.00014996,2]
[422370150,1778887839000,-287.11416308,0.00014986,2]
[422370106,1778887839000,-1000.0,0.0001497,2]
[422370143,1778887839000,-289.18740541,0.00014986,2]
[422370099,1778887839000,-1000.0,0.0001497,2]
[422370097,1778887839000,-500.0,0.0001497,2]
[422370093,1778887839000,-500.0,0.0001497,2]
[422370095,1778887839000,-1000.0,0.0001497,2]
[422370101,1778887839000,-1000.0,0.0001497,2]
[422370103,1778887839000,-500.0,0.0001497,2]
[422370117,1778887839000,-500.0,0.0001497,2]
[422370108,1778887839000,-1000.0,0.0001497,2]
[422370115,1778887839000,-1000.0,0.0001497,2]
[422370119,1778887839000,-1000.0,0.0001497,2]
[422370209,1778887839000,-500.0,0.00014996,2]
[422370147,1778887839000,-173.4120625,0.00014986,2]
[422370113,1778887839000,-500.0,0.0001497,2]
[422370121,1778887839000,-1215.46028509,0.0001497,2]
[422370124,1778887839000,-500.0,0.0001497,2]
[422370126,1778887839000,-500.0,0.0001497,2]
[422370137,1778887839000,-225.9796833,0.00014986,2]
[422370128,1778887839000,-500.0,0.0001497,2]
[422370139,1778887839000,-266.38482168,0.00014986,2]
[422370130,1778887839000,-500.0,0.0001497,2]
[422370141,1778887839000,-156.34451496,0.00014986,2]
[422370132,1778887839000,-689.73790928,0.0001497,2]
[422370146,1778887839000,-267.15823454,0.00014986,2]
[422370135,1778887839000,-150.0,0.00014986,2]
[422370110,1778887839000,-1000.0,0.0001497,2]
[422370207,1778887839000,-500.0,0.00014996,2]
[422370182,1778887839000,-500.0,0.00014996,2]
[422370201,1778887839000,-500.0,0.00014996,2]
[422370271,1778887839000,-552.6145958,0.00014999,2]
[422370273,1778887839000,-552.6145958,0.00014999,2]
[422370275,1778887839000,-552.6145958,0.00014999,2]
[422370278,1778887839000,-552.6145958,0.00014999,2]
[422370279,1778887839000,-552.6145958,0.00014999,2]
[422370280,1778887839000,-552.6145958,0.00014999,2]
[422370277,1778887839000,-552.6145958,0.00014999,2]
[422370276,1778887839000,-552.6145958,0.00014999,2]
[422370281,1778887839000,-552.6145958,0.00014999,2]
[422370283,1778887839000,-552.6145958,0.00014999,2]
[422370285,1778887839000,-552.6145958,0.00014999,2]
[422370286,1778887839000,-552.6145958,0.00014999,2]
[422370282,1778887839000,-552.6145958,0.00014999,2]
[422370288,1778887839000,-552.6145958,0.00014999,2]
[422370287,1778887839000,-552.6145958,0.00014999,2]
[422370292,1778887839000,-552.6145958,0.00014999,2]
[422370290,1778887839000,-552.6145958,0.00014999,2]
[422370291,1778887839000,-552.6145958,0.00014999,2]
[422370289,1778887839000,-552.6145958,0.00014999,2]
[422370293,1778887839000,-552.6145958,0.00014999,2]
[422370295,1778887839000,-552.6145958,0.00014999,2]
[422370294,1778887839000,-552.6145958,0.00014999,2]
[422370296,1778887839000,-552.6145958,0.00014999,2]
[422370203,1778887839000,-500.0,0.00014996,2]
[422370297,1778887839000,-552.6145958,0.00014999,2]
[422370269,1778887839000,-552.6145958,0.00014999,2]
[422370267,1778887839000,-552.6145958,0.00014999,2]
[422370284,1778887839000,-552.6145958,0.00014999,2]
[422370263,1778887839000,-552.6145958,0.00014999,2]
[422370215,1778887839000,-5786.6861954,0.00014997,2]
[422370217,1778887839000,-106492.21910578,0.00014997,2]
[422370265,1778887839000,-552.6145958,0.00014999,2]
[422370205,1778887839000,-500.0,0.00014996,2]
[422370219,1778887839000,-942.62744777,0.00014997,2]
[422370230,1778887839000,-3204.5223188,0.00014997,2]
[422370235,1778887839000,-1090.6312335,0.00014999,5]
[422370226,1778887839000,-19376.5388641,0.00014997,2]
[422370233,1778887839000,-500.0,0.00014999,2]
[422370223,1778887839000,-48900.13997905,0.00014997,2]
[422370239,1778887839000,-216.94697784,0.00014999,2]
[422370228,1778887839000,-174163.7911722,0.00014997,2]
[422370237,1778887839000,-500.0,0.00014999,2]
[422370240,1778887839000,-500.0,0.00014999,2]
[422370248,1778887839000,-552.6145958,0.00014999,2]
[422370225,1778887839000,-3565.3116249,0.00014997,2]
[422370244,1778887839000,-552.6145958,0.00014999,2]
[422370257,1778887839000,-552.6145958,0.00014999,2]
[422370255,1778887839000,-552.6145958,0.00014999,2]
[422370261,1778887839000,-552.6145958,0.00014999,2]
[422370246,1778887839000,-552.6145958,0.00014999,2]
[422370243,1778887839000,-500.0,0.00014999,2]
[422370259,1778887839000,-552.6145958,0.00014999,2]
[422370253,1778887839000,-552.6145958,0.00014999,2]
[422370251,1778887839000,-552.6145958,0.00014999,2]
[422370338,1778887840000,-500.0,0.00014999,2]
[422370337,1778887840000,-545.87539342,0.00014999,2]
[422370336,1778887840000,-545.87539342,0.00014999,2]
[422370335,1778887840000,-545.87539342,0.00014999,2]
[422370334,1778887840000,-545.87539342,0.00014999,2]
[422370339,1778887840000,-414.02001082,0.00014999,2]
[422370332,1778887840000,-545.87539342,0.00014999,2]
[422370330,1778887840000,-545.87539342,0.00014999,2]
[422370328,1778887840000,-545.87539342,0.00014999,2]
[422370331,1778887840000,-545.87539342,0.00014999,2]
[422370340,1778887840000,-500.0,0.00014999,2]
[422370333,1778887840000,-545.87539342,0.00014999,2]
[422370341,1778887840000,-500.0,0.00014999,2]
[422370359,1778887840000,-242.46586813,0.00014999,2]
[422370350,1778887840000,-535.95038627,0.00014999,2]
[422370342,1778887840000,-500.0,0.00014999,2]
[422370346,1778887840000,-535.95038627,0.00014999,2]
[422370349,1778887840000,-535.95038627,0.00014999,2]
[422370345,1778887840000,-535.95038627,0.00014999,2]
[422370347,1778887840000,-535.95038627,0.00014999,2]
[422370343,1778887840000,-270.4827626,0.00014999,2]
[422370348,1778887840000,-535.95038627,0.00014999,2]
[422370352,1778887840000,-535.95038627,0.00014999,2]
[422370353,1778887840000,-535.95038627,0.00014999,2]
[422370355,1778887840000,-178.11180097,0.00014999,2]
[422370329,1778887840000,-545.87539342,0.00014999,2]
[422370344,1778887840000,-535.95038627,0.00014999,2]
[422370323,1778887840000,-545.87539342,0.00014999,2]
[422370301,1778887840000,-552.6145958,0.00014999,2]
[422370326,1778887840000,-545.87539342,0.00014999,2]
[422370358,1778887840000,-500.0,0.00014999,2]
[422370300,1778887840000,-552.6145958,0.00014999,2]
[422370302,1778887840000,-552.6145958,0.00014999,2]
[422370299,1778887840000,-552.6145958,0.00014999,2]
[422370303,1778887840000,-552.6145958,0.00014999,2]
[422370298,1778887840000,-552.6145958,0.00014999,2]
[422370304,1778887840000,-552.6145958,0.00014999,2]
[422370305,1778887840000,-552.6145958,0.00014999,2]
[422370307,1778887840000,-552.6145958,0.00014999,2]
[422370308,1778887840000,-281.33853748,0.00014999,2]
[422370306,1778887840000,-552.6145958,0.00014999,2]
[422370309,1778887840000,-545.87539342,0.00014999,2]
[422370312,1778887840000,-545.87539342,0.00014999,2]
[422370310,1778887840000,-545.87539342,0.00014999,2]
[422370313,1778887840000,-545.87539342,0.00014999,2]
[422370314,1778887840000,-545.87539342,0.00014999,2]
[422370311,1778887840000,-545.87539342,0.00014999,2]
[422370315,1778887840000,-545.87539342,0.00014999,2]
[422370316,1778887840000,-545.87539342,0.00014999,2]
[422370320,1778887840000,-545.87539342,0.00014999,2]
[422370319,1778887840000,-545.87539342,0.00014999,2]
[422370318,1778887840000,-545.87539342,0.00014999,2]
[422370317,1778887840000,-545.87539342,0.00014999,2]
[422370321,1778887840000,-545.87539342,0.00014999,2]
[422370322,1778887840000,-545.87539342,0.00014999,2]
[422370327,1778887840000,-545.87539342,0.00014999,2]
[422370325,1778887840000,-545.87539342,0.00014999,2]
[422370324,1778887840000,-545.87539342,0.00014999,2]
[422370356,1778887840000,-150.0,0.00014999,2]
[422370403,1778887840000,-500.0,0.00014999,2]
[422370351,1778887840000,-535.95038627,0.00014999,2]
[422370393,1778887840000,-727.88,0.00014999,2]
[422370399,1778887840000,-500.0,0.00014999,2]
[422370392,1778887840000,-727.88,0.00014999,2]
[422370394,1778887840000,-727.88,0.00014999,2]
[422370397,1778887840000,-500.0,0.00014999,2]
[422370391,1778887840000,-727.88,0.00014999,2]
[422370390,1778887840000,-727.88,0.00014999,2]
[422370389,1778887840000,-727.88,0.00014999,2]
[422370400,1778887840000,-500.0,0.00014999,2]
[422370396,1778887840000,-500.0,0.00014999,2]
[422370398,1778887840000,-500.0,0.00014999,2]
[422370410,1778887840000,-500.0,0.00014999,2]
[422370409,1778887840000,-1090.63123349,0.00014999,5]
[422370401,1778887840000,-500.0,0.00014999,2]
[422370360,1778887840000,-500.0,0.00014999,2]
[422370406,1778887840000,-500.0,0.00014999,2]
[422370402,1778887840000,-500.0,0.00014999,2]
[422370405,1778887840000,-500.0,0.00014999,2]
[422370413,1778887840000,-500.0,0.00014999,2]
[422370407,1778887840000,-620.15758592,0.00014999,2]
[422370412,1778887840000,-500.0,0.00014999,2]
[422370408,1778887840000,-431.69745624,0.00014999,2]
[422370404,1778887840000,-500.0,0.00014999,2]
[422370415,1778887840000,-500.0,0.00014999,2]
[422370414,1778887840000,-500.0,0.00014999,2]
[422370417,1778887840000,-500.0,0.00014999,2]
[422370416,1778887840000,-500.0,0.00014999,2]
[422370395,1778887840000,-728.05987748,0.00014999,2]
[422370388,1778887840000,-727.88,0.00014999,2]
[422370411,1778887840000,-500.0,0.00014999,2]
[422370385,1778887840000,-727.88,0.00014999,2]
[422370384,1778887840000,-727.88,0.00014999,2]
[422370354,1778887840000,-535.95038627,0.00014999,2]
[422370357,1778887840000,-1090.63123349,0.00014999,5]
[422370361,1778887840000,-500.0,0.00014999,2]
[422370363,1778887840000,-500.0,0.00014999,2]
[422370365,1778887840000,-500.0,0.00014999,2]
[422370369,1778887840000,-500.0,0.00014999,2]
[422370374,1778887840000,-727.88,0.00014999,2]
[422370372,1778887840000,-500.0,0.00014999,2]
[422370362,1778887840000,-426.17237592,0.00014999,2]
[422370366,1778887840000,-500.0,0.00014999,2]
[422370364,1778887840000,-500.0,0.00014999,2]
[422370368,1778887840000,-500.0,0.00014999,2]
[422370367,1778887840000,-500.0,0.00014999,2]
[422370371,1778887840000,-500.0,0.00014999,2]
[422370381,1778887840000,-727.88,0.00014999,2]
[422370373,1778887840000,-727.88,0.00014999,2]
[422370387,1778887840000,-727.88,0.00014999,2]
[422370376,1778887840000,-727.88,0.00014999,2]
[422370386,1778887840000,-727.88,0.00014999,2]
[422370380,1778887840000,-727.88,0.00014999,2]
[422370383,1778887840000,-727.88,0.00014999,2]
[422370379,1778887840000,-727.88,0.00014999,2]
[422370378,1778887840000,-727.88,0.00014999,2]
[422370382,1778887840000,-727.88,0.00014999,2]
[422370375,1778887840000,-727.88,0.00014999,2]
[422370377,1778887840000,-727.88,0.00014999,2]
[422370370,1778887840000,-150.36671591,0.00014999,2]
[422370440,1778887841000,-500.0,0.00014999,2]
[422370434,1778887841000,-500.0,0.00014999,2]
[422370438,1778887841000,-500.0,0.00014999,2]
[422370439,1778887841000,-500.0,0.00014999,2]
[422370448,1778887841000,-500.0,0.00014999,2]
[422370436,1778887841000,-500.0,0.00014999,2]
[422370441,1778887841000,-500.0,0.00014999,2]
[422370442,1778887841000,-500.0,0.00014999,2]
[422370450,1778887841000,-500.0,0.00014999,2]
[422370445,1778887841000,-500.0,0.00014999,2]
[422370447,1778887841000,-500.0,0.00014999,2]
[422370449,1778887841000,-531.58948672,0.00014999,2]
[422370443,1778887841000,-500.0,0.00014999,2]
[422370437,1778887841000,-500.0,0.00014999,2]
[422370446,1778887841000,-500.0,0.00014999,2]
[422370435,1778887841000,-500.0,0.00014999,2]
[422370418,1778887841000,-500.0,0.00014999,2]
[422370432,1778887841000,-500.0,0.00014999,2]
[422370444,1778887841000,-500.0,0.00014999,2]
[422370425,1778887841000,-500.0,0.00014999,2]
[422370426,1778887841000,-500.0,0.00014999,2]
[422370421,1778887841000,-500.0,0.00014999,2]
[422370420,1778887841000,-500.0,0.00014999,2]
[422370422,1778887841000,-500.0,0.00014999,2]
[422370431,1778887841000,-500.0,0.00014999,2]
[422370419,1778887841000,-500.0,0.00014999,2]
[422370423,1778887841000,-500.0,0.00014999,2]
[422370428,1778887841000,-500.0,0.00014999,2]
[422370427,1778887841000,-500.0,0.00014999,2]
[422370430,1778887841000,-500.0,0.00014999,2]
[422370429,1778887841000,-500.0,0.00014999,2]
[422370433,1778887841000,-500.0,0.00014999,2]
[422370424,1778887841000,-500.0,0.00014999,2]
[422370452,1778887841000,-500.0,0.00014999,2]
[422370467,1778887841000,-500.0,0.00014999,2]
[422370453,1778887841000,-500.0,0.00014999,2]
[422370466,1778887841000,-583.43461365,0.00014999,2]
[422370481,1778887841000,-300.0,0.00014999,2]
[422370484,1778887841000,-1369.0,0.00015,5]
[422370476,1778887841000,-300.0,0.00014999,2]
[422370475,1778887841000,-186.4,0.00014999,2]
[422370474,1778887841000,-461.79272173,0.00014999,2]
[422370471,1778887841000,-500.0,0.00014999,2]
[422370482,1778887841000,-300.0,0.00014999,2]
[422370477,1778887841000,-300.0,0.00014999,2]
[422370483,1778887841000,-666.0,0.00014999,2]
[422370478,1778887841000,-300.0,0.00014999,2]
[422370487,1778887841000,-3147092.65507316,0.00015,2]
[422370485,1778887841000,-150.0,0.00015,2]
[422370455,1778887841000,-500.0,0.00014999,2]
[422370479,1778887841000,-666.0,0.00014999,2]
[422370472,1778887841000,-500.0,0.00014999,2]
[422370480,1778887841000,-666.0,0.00014999,2]
[422370468,1778887841000,-500.0,0.00014999,2]
[422370486,1778887841000,-150.0,0.00015,2]
[422370462,1778887841000,-500.0,0.00014999,2]
[422370451,1778887841000,-500.0,0.00014999,2]
[422370458,1778887841000,-500.0,0.00014999,2]
[422370460,1778887841000,-500.0,0.00014999,2]
[422370459,1778887841000,-500.0,0.00014999,2]
[422370456,1778887841000,-500.0,0.00014999,2]
[422370461,1778887841000,-500.0,0.00014999,2]
[422370454,1778887841000,-500.0,0.00014999,2]
[422370463,1778887841000,-500.0,0.00014999,2]
[422370464,1778887841000,-500.0,0.00014999,2]
[422370465,1778887841000,-500.0,0.00014999,2]
[422370469,1778887841000,-500.0,0.00014999,2]
[422370473,1778887841000,-500.0,0.00014999,2]
[422370470,1778887841000,-500.0,0.00014999,2]
[422370457,1778887841000,-500.0,0.00014999,2]
[422370491,1778887842000,-1650.61375639,0.00015,2]
[422370490,1778887842000,-764.8018764,0.00015,2]
[422370489,1778887842000,-4911.37788427,0.00015,2]
[422370492,1778887842000,-325.34480629,0.00015,2]
[422370497,1778887842000,-13448.91587732,0.00015,2]
[422370495,1778887842000,-375.4692725,0.00015,2]
[422370494,1778887842000,-263.40803078,0.00015,2]
[422370496,1778887842000,-606.6000014,0.00015,2]
[422370493,1778887842000,-2148.77700831,0.00015,2]
[422370514,1778887843000,-4307.74967549,0.00015,2]
[422370507,1778887843000,-168.21611985,0.000149,2]
[422370508,1778887843000,-6367.89081641,0.00015,2]
[422370510,1778887843000,-175650.27372626,0.00015,2]
[422370509,1778887843000,-1657.59781955,0.00015,2]
[422370511,1778887843000,-12528.01812798,0.00015,2]
[422370512,1778887843000,-1030.1308482,0.00015,2]
[422370513,1778887843000,-2374.92596407,0.00015,2]
[422370502,1778887843000,-317.42,0.00015,2]
[422370521,1778887843000,-45174.96008237,0.00015,2]
[422370515,1778887843000,-550.52434579,0.00015,2]
[422370520,1778887843000,-743.33980056,0.00015,2]
[422370517,1778887843000,-440.63678335,0.00015,2]
[422370523,1778887843000,-999.45883975,0.00015,2]
[422370516,1778887843000,-3101.36321665,0.00015,2]
[422370519,1778887843000,-301.96676387,0.00015,2]
[422370522,1778887843000,-11629.15262787,0.00015,2]
[422370518,1778887843000,-3807.44710751,0.00015,2]
[422370529,1778887846000,-1014.18,0.00015,2]
[422370536,1778887860000,325.35,0.00030135,120]
[422370537,1778888313000,151.0,0.0003,120]